[Event "Titled Tuesday Blitz June 20 Early 2023"]
[White "Ning, Kaiyu"]
[Black "Chigaev, Maksim"]
[WhiteFideId "8614750"]
[BlackFideId "4108116"]
[WhiteElo "2287"]
[BlackElo "2561"]
[Result "1/2-1/2"]
[Round "11"]
[TimeControl "180+2"]
[Date "2023.06.20"]
[WhiteClock "0:00:09"]
[BlackClock "0:00:12"]
[Board "20"]

1. e4 {[%clk 0:03:00]}  e6 {[%clk 0:02:59]} 2. d4 {[%clk 0:03:00]}  d5 {[%clk 0:03:00]} 3. e5 {[%clk 0:02:58]}  c5 {[%clk 0:03:00]} 4. c3 {[%clk 0:02:59]}  Nc6 {[%clk 0:03:01]} 5. Nf3 {[%clk 0:02:59]}  Bd7 {[%clk 0:03:02]} 6. Be2 {[%clk 0:02:55]}  f6 {[%clk 0:03:02]} 7. O-O {[%clk 0:02:50]}  fxe5 {[%clk 0:03:01]} 8. Nxe5 {[%clk 0:02:43]}  Nxe5 {[%clk 0:03:00]} 9. dxe5 {[%clk 0:02:44]}  Qc7 {[%clk 0:03:01]} 10. f4 {[%clk 0:02:44]}  Nh6 {[%clk 0:02:54]} 11. Nd2 {[%clk 0:02:43]}  Nf5 {[%clk 0:02:51]} 12. Nf3 {[%clk 0:02:43]}  c4 {[%clk 0:02:50]} 13. g4 {[%clk 0:02:39]}  Bc5+ {[%clk 0:02:50]} 14. Nd4 {[%clk 0:02:39]}  Bxd4+ {[%clk 0:02:44]} 15. cxd4 {[%clk 0:02:39]}  Ne7 {[%clk 0:02:45]} 16. b3 {[%clk 0:02:30]}  Qa5 {[%clk 0:02:06]} 17. a4 {[%clk 0:01:56]}  b5 {[%clk 0:02:00]} 18. Be3 {[%clk 0:01:24]}  b4 {[%clk 0:01:47]} 19. bxc4 {[%clk 0:01:22]}  dxc4 {[%clk 0:01:48]} 20. Bxc4 {[%clk 0:01:22]}  Rc8 {[%clk 0:01:49]} 21. Qb3 {[%clk 0:01:08]}  Nd5 {[%clk 0:01:42]} 22. Bd2 {[%clk 0:01:08]}  Qb6 {[%clk 0:01:15]} 23. Bxd5 {[%clk 0:01:08]}  Qxd4+ {[%clk 0:01:14]} 24. Be3 {[%clk 0:01:08]}  Qxd5 {[%clk 0:01:15]} 25. Qxd5 {[%clk 0:01:07]}  exd5 {[%clk 0:01:15]} 26. f5 {[%clk 0:01:07]}  Rc4 {[%clk 0:00:57]} 27. e6 {[%clk 0:01:04]}  Rxg4+ {[%clk 0:00:50]} 28. Kf2 {[%clk 0:01:04]}  Bc8 {[%clk 0:00:27]} 29. Bc5 {[%clk 0:00:56]}  Rc4 {[%clk 0:00:16]} 30. Bd6 {[%clk 0:00:46]}  g6 {[%clk 0:00:12]} 31. Rad1 {[%clk 0:00:19]}  gxf5 {[%clk 0:00:12]} 32. Rxd5 {[%clk 0:00:18]}  Bxe6 {[%clk 0:00:13]} 33. Ra5 {[%clk 0:00:16]}  Kd7 {[%clk 0:00:04]} 34. Rd1 {[%clk 0:00:15]}  Rc2+ {[%clk 0:00:03]} 35. Ke3 {[%clk 0:00:14]}  Rc3+ {[%clk 0:00:04]} 36. Kf4 {[%clk 0:00:12]}  Rc4+ {[%clk 0:00:04]} 37. Ke5 {[%clk 0:00:10]}  Re4+ {[%clk 0:00:05]} 38. Kf6 {[%clk 0:00:11]}  Kc6 {[%clk 0:00:02]} 39. Rc5+ {[%clk 0:00:06]}  Kb7 {[%clk 0:00:02]} 40. Rb5+ {[%clk 0:00:06]}  Ka8 {[%clk 0:00:01]} 41. Rxb4 {[%clk 0:00:04]}  Rxb4 {[%clk 0:00:01]} 42. Bxb4 {[%clk 0:00:05]}  Bb3 {[%clk 0:00:02]} 43. Rd7 {[%clk 0:00:04]}  Bxa4 {[%clk 0:00:02]} 44. Rc7 {[%clk 0:00:03]}  h5 {[%clk 0:00:02]} 45. Bc5 {[%clk 0:00:03]}  Bb5 {[%clk 0:00:02]} 46. Rxa7+ {[%clk 0:00:03]}  Kb8 {[%clk 0:00:02]} 47. Kxf5 {[%clk 0:00:02]}  Rc8 {[%clk 0:00:02]} 48. Be3 {[%clk 0:00:01]}  Rc3 {[%clk 0:00:02]} 49. Bd4 {[%clk 0:00:01]}  Rd3 {[%clk 0:00:02]} 50. Bb6 {[%clk 0:00:01]}  Bd7+ {[%clk 0:00:01]} 51. Kg5 {[%clk 0:00:01]}  Rd5+ {[%clk 0:00:02]} 52. Kh4 {[%clk 0:00:01]}  Bc8 {[%clk 0:00:02]} 53. Ra5 {[%clk 0:00:01]}  Rxa5 {[%clk 0:00:02]} 54. Bxa5 {[%clk 0:00:01]}  Bg4 {[%clk 0:00:02]} 55. Bd2 {[%clk 0:00:01]}  Bd1 {[%clk 0:00:03]} 56. h3 {[%clk 0:00:02]}  Kc8 {[%clk 0:00:04]} 57. Kg3 {[%clk 0:00:03]}  Kd7 {[%clk 0:00:05]} 58. Kh4 {[%clk 0:00:03]}  Ke6 {[%clk 0:00:05]} 59. Bg5 {[%clk 0:00:03]}  Kf7 {[%clk 0:00:06]} 60. Bd8 {[%clk 0:00:04]}  Kg6 {[%clk 0:00:07]} 61. Ba5 {[%clk 0:00:05]}  Be2 {[%clk 0:00:07]} 62. Bb4 {[%clk 0:00:05]}  Bd3 {[%clk 0:00:08]} 63. Ba5 {[%clk 0:00:06]}  Ba6 {[%clk 0:00:09]} 64. Bb4 {[%clk 0:00:07]}  Bb5 {[%clk 0:00:10]} 65. Ba5 {[%clk 0:00:07]}  Ba6 {[%clk 0:00:11]} 66. Bb4 {[%clk 0:00:08]}  Bb5 {[%clk 0:00:12]} 67. Ba5 {[%clk 0:00:09]}  Ba6 {[%clk 0:00:12]} 1/2-1/2


[Site "https://www.chess.com"]

[Event "Titled Tuesday Blitz June 20 Early 2023"]
[White "Gritsenko, Nikolai"]
[Black "Gadimbayli, Abdulla"]
[WhiteFideId "14112493"]
[BlackFideId "13404938"]
[WhiteElo "2389"]
[BlackElo "2386"]
[Result "1-0"]
[Round "11"]
[TimeControl "180+2"]
[Date "2023.06.20"]
[WhiteClock "0:00:05"]
[BlackClock "0:00:09"]
[Board "22"]

1. d4 {[%clk 0:03:00]}  d5 {[%clk 0:02:58]} 2. Nf3 {[%clk 0:02:59]}  Nc6 {[%clk 0:02:58]} 3. e3 {[%clk 0:02:52]}  Bg4 {[%clk 0:02:56]} 4. Be2 {[%clk 0:02:47]}  Nf6 {[%clk 0:02:55]} 5. Nbd2 {[%clk 0:02:46]}  Qd6 {[%clk 0:02:52]} 6. c4 {[%clk 0:02:41]}  Bxf3 {[%clk 0:02:50]} 7. gxf3 {[%clk 0:02:35]}  e5 {[%clk 0:02:50]} 8. cxd5 {[%clk 0:02:14]}  Qxd5 {[%clk 0:02:42]} 9. dxe5 {[%clk 0:02:10]}  Nxe5 {[%clk 0:02:39]} 10. Qb3 {[%clk 0:02:05]}  O-O-O {[%clk 0:02:32]} 11. Qxd5 {[%clk 0:02:04]}  Nxd5 {[%clk 0:02:33]} 12. a3 {[%clk 0:01:59]}  g5 {[%clk 0:02:31]} 13. Ne4 {[%clk 0:01:52]}  h6 {[%clk 0:02:27]} 14. Ng3 {[%clk 0:01:45]}  Nb6 {[%clk 0:02:00]} 15. Bd2 {[%clk 0:01:40]}  h5 {[%clk 0:01:32]} 16. O-O-O {[%clk 0:01:27]}  Nd5 {[%clk 0:01:14]} 17. Ne4 {[%clk 0:01:12]}  Be7 {[%clk 0:01:11]} 18. Nc3 {[%clk 0:01:03]}  Nb6 {[%clk 0:01:09]} 19. Nb5 {[%clk 0:01:02]}  a6 {[%clk 0:01:08]} 20. Bc3 {[%clk 0:00:59]}  f6 {[%clk 0:01:09]} 21. Nd4 {[%clk 0:00:43]}  Nd5 {[%clk 0:01:07]} 22. Nf5 {[%clk 0:00:43]}  Bc5 {[%clk 0:01:07]} 23. Bxe5 {[%clk 0:00:33]}  fxe5 {[%clk 0:01:08]} 24. Rhg1 {[%clk 0:00:27]}  g4 {[%clk 0:00:42]} 25. fxg4 {[%clk 0:00:23]}  hxg4 {[%clk 0:00:43]} 26. Bxg4 {[%clk 0:00:24]}  Kb8 {[%clk 0:00:43]} 27. h3 {[%clk 0:00:24]}  Nf6 {[%clk 0:00:42]} 28. Rxd8+ {[%clk 0:00:23]}  Rxd8 {[%clk 0:00:43]} 29. Rd1 {[%clk 0:00:23]}  Rg8 {[%clk 0:00:41]} 30. Rg1 {[%clk 0:00:21]}  Ne4 {[%clk 0:00:40]} 31. Rg2 {[%clk 0:00:18]}  Rf8 {[%clk 0:00:40]} 32. f3 {[%clk 0:00:17]}  Nd6 {[%clk 0:00:39]} 33. e4 {[%clk 0:00:17]}  Nb5 {[%clk 0:00:37]} 34. h4 {[%clk 0:00:16]}  Nd4 {[%clk 0:00:33]} 35. h5 {[%clk 0:00:16]}  Rf6 {[%clk 0:00:34]} 36. Rh2 {[%clk 0:00:15]}  Nxf5 {[%clk 0:00:31]} 37. Bxf5 {[%clk 0:00:15]}  Be3+ {[%clk 0:00:32]} 38. Kc2 {[%clk 0:00:14]}  Rd6 {[%clk 0:00:33]} 39. Rg2 {[%clk 0:00:12]}  b5 {[%clk 0:00:31]} 40. Re2 {[%clk 0:00:10]}  Bf4 {[%clk 0:00:30]} 41. Rg2 {[%clk 0:00:10]}  Kb7 {[%clk 0:00:31]} 42. Re2 {[%clk 0:00:07]}  Rc6+ {[%clk 0:00:30]} 43. Kb3 {[%clk 0:00:06]}  Rd6 {[%clk 0:00:26]} 44. Rg2 {[%clk 0:00:05]}  Rd3+ {[%clk 0:00:26]} 45. Kc2 {[%clk 0:00:05]}  Rxf3 {[%clk 0:00:27]} 46. Bg6 {[%clk 0:00:03]}  Rh3 {[%clk 0:00:26]} 47. Bf7 {[%clk 0:00:03]}  c6 {[%clk 0:00:23]} 48. Re2 {[%clk 0:00:03]}  Kb6 {[%clk 0:00:23]} 49. Kb1 {[%clk 0:00:03]}  a5 {[%clk 0:00:23]} 50. Ka2 {[%clk 0:00:03]}  a4 {[%clk 0:00:24]} 51. Be6 {[%clk 0:00:03]}  Rxh5 {[%clk 0:00:23]} 52. Rc2 {[%clk 0:00:03]}  Rh6 {[%clk 0:00:23]} 53. Bd7 {[%clk 0:00:03]}  Rd6 {[%clk 0:00:22]} 54. Bf5 {[%clk 0:00:03]}  c5 {[%clk 0:00:21]} 55. Rg2 {[%clk 0:00:03]}  Rd1 {[%clk 0:00:17]} 56. Rg6+ {[%clk 0:00:02]}  Kb7 {[%clk 0:00:17]} 57. Rg7+ {[%clk 0:00:02]}  Kb6 {[%clk 0:00:18]} 58. Rg6+ {[%clk 0:00:03]}  Ka5 {[%clk 0:00:18]} 59. Rg8 {[%clk 0:00:03]}  b4 {[%clk 0:00:18]} 60. Ra8+ {[%clk 0:00:03]}  Kb5 {[%clk 0:00:18]} 61. Rb8+ {[%clk 0:00:04]}  Kc4 {[%clk 0:00:14]} 62. Be6+ {[%clk 0:00:04]}  Kd4 {[%clk 0:00:14]} 63. Rd8+ {[%clk 0:00:03]}  Kxe4 {[%clk 0:00:11]} 64. Rxd1 {[%clk 0:00:04]}  b3+ {[%clk 0:00:12]} 65. Kb1 {[%clk 0:00:04]}  Kf3 {[%clk 0:00:11]} 66. Bd7 {[%clk 0:00:03]}  e4 {[%clk 0:00:12]} 67. Bc6 {[%clk 0:00:04]}  Ke2 {[%clk 0:00:12]} 68. Rd8 {[%clk 0:00:02]}  e3 {[%clk 0:00:12]} 69. Re8 {[%clk 0:00:02]}  Kd2 {[%clk 0:00:12]} 70. Bb5 {[%clk 0:00:02]}  Bg5 {[%clk 0:00:10]} 71. Re4 {[%clk 0:00:02]}  Bf6 {[%clk 0:00:09]} 72. Rxa4 {[%clk 0:00:02]}  Bd4 {[%clk 0:00:08]} 73. Ra6 {[%clk 0:00:01]}  e2 {[%clk 0:00:08]} 74. Bxe2 {[%clk 0:00:01]}  Kxe2 {[%clk 0:00:09]} 75. a4 {[%clk 0:00:01]}  c4 {[%clk 0:00:10]} 76. a5 {[%clk 0:00:01]}  Ke3 {[%clk 0:00:10]} 77. Rd6 {[%clk 0:00:01]}  Bc5 {[%clk 0:00:10]} 78. Rd5 {[%clk 0:00:01]}  Ba7 {[%clk 0:00:07]} 79. Rd7 {[%clk 0:00:02]}  Bc5 {[%clk 0:00:07]} 80. a6 {[%clk 0:00:02]}  c3 {[%clk 0:00:07]} 81. a7 {[%clk 0:00:03]}  c2+ {[%clk 0:00:08]} 82. Kc1 {[%clk 0:00:03]}  Ke2 {[%clk 0:00:09]} 83. Re7+ {[%clk 0:00:03]}  Kd3 {[%clk 0:00:09]} 84. a8=Q {[%clk 0:00:03]}  Bxe7 {[%clk 0:00:10]} 85. Qd5+ {[%clk 0:00:03]}  Ke2 {[%clk 0:00:10]} 86. Qxb3 {[%clk 0:00:03]}  Bg5+ {[%clk 0:00:10]} 87. Kxc2 {[%clk 0:00:04]}  Bd2 {[%clk 0:00:09]} 88. Qc4+ {[%clk 0:00:05]} 1-0


[Site "https://www.chess.com"]

[Event "Titled Tuesday Blitz June 20 Early 2023"]
[White "Idani, Pouya"]
[Black "Mendonca, Leon Luke"]
[WhiteFideId "12510130"]
[BlackFideId "35028561"]
[WhiteElo "2574"]
[BlackElo "2464"]
[Result "1-0"]
[Round "11"]
[TimeControl "180+2"]
[Date "2023.06.20"]
[WhiteClock "0:00:19"]
[BlackClock "0:00:07"]
[Board "23"]

1. e4 {[%clk 0:03:00]}  Nf6 {[%clk 0:03:00]} 2. e5 {[%clk 0:03:01]}  Ng8 {[%clk 0:03:01]} 3. d4 {[%clk 0:03:00]}  d6 {[%clk 0:03:01]} 4. Nf3 {[%clk 0:03:01]}  Bg4 {[%clk 0:03:01]} 5. exd6 {[%clk 0:03:00]}  cxd6 {[%clk 0:03:01]} 6. h3 {[%clk 0:02:59]}  Bh5 {[%clk 0:03:01]} 7. c4 {[%clk 0:02:55]}  Nf6 {[%clk 0:03:01]} 8. Nc3 {[%clk 0:02:55]}  e6 {[%clk 0:03:02]} 9. Be2 {[%clk 0:02:56]}  Be7 {[%clk 0:03:02]} 10. O-O {[%clk 0:02:56]}  O-O {[%clk 0:03:02]} 11. d5 {[%clk 0:02:52]}  e5 {[%clk 0:03:01]} 12. Ng5 {[%clk 0:02:47]}  Bxe2 {[%clk 0:02:59]} 13. Qxe2 {[%clk 0:02:48]}  Nbd7 {[%clk 0:03:00]} 14. Nf3 {[%clk 0:02:40]}  Rc8 {[%clk 0:02:59]} 15. b3 {[%clk 0:02:36]}  Ne8 {[%clk 0:02:54]} 16. Bb2 {[%clk 0:02:35]}  f5 {[%clk 0:02:54]} 17. Rfe1 {[%clk 0:02:34]}  Bf6 {[%clk 0:02:49]} 18. Rad1 {[%clk 0:02:30]}  g6 {[%clk 0:02:49]} 19. b4 {[%clk 0:02:07]}  b6 {[%clk 0:02:07]} 20. Nb5 {[%clk 0:02:01]}  Ra8 {[%clk 0:02:04]} 21. Ba3 {[%clk 0:01:47]}  a6 {[%clk 0:02:00]} 22. Nc3 {[%clk 0:01:47]}  a5 {[%clk 0:02:00]} 23. bxa5 {[%clk 0:01:13]}  Rxa5 {[%clk 0:02:01]} 24. Bb4 {[%clk 0:01:13]}  Ra8 {[%clk 0:02:01]} 25. a4 {[%clk 0:01:13]}  Nc5 {[%clk 0:02:01]} 26. a5 {[%clk 0:01:09]}  Na6 {[%clk 0:01:52]} 27. Ba3 {[%clk 0:01:06]}  bxa5 {[%clk 0:01:53]} 28. c5 {[%clk 0:01:04]}  Nxc5 {[%clk 0:01:49]} 29. Bxc5 {[%clk 0:01:04]}  dxc5 {[%clk 0:01:50]} 30. Nxe5 {[%clk 0:01:03]}  Bxe5 {[%clk 0:01:45]} 31. Qxe5 {[%clk 0:01:02]}  Nd6 {[%clk 0:01:44]} 32. Na4 {[%clk 0:00:56]}  Rc8 {[%clk 0:01:32]} 33. Qf4 {[%clk 0:00:46]}  c4 {[%clk 0:01:00]} 34. Re6 {[%clk 0:00:45]}  Ne4 {[%clk 0:01:00]} 35. Qe5 {[%clk 0:00:22]}  c3 {[%clk 0:00:49]} 36. f3 {[%clk 0:00:20]}  c2 {[%clk 0:00:48]} 37. Rc1 {[%clk 0:00:21]}  Nf6 {[%clk 0:00:39]} 38. d6 {[%clk 0:00:19]}  Nd7 {[%clk 0:00:37]} 39. Qd5 {[%clk 0:00:19]}  Kh8 {[%clk 0:00:22]} 40. Qd4+ {[%clk 0:00:19]}  Kg8 {[%clk 0:00:19]} 41. Re7 {[%clk 0:00:19]}  Nf6 {[%clk 0:00:15]} 42. Nb6 {[%clk 0:00:19]}  Rc6 {[%clk 0:00:15]} 43. Nc4 {[%clk 0:00:19]}  Rf7 {[%clk 0:00:09]} 44. Rxf7 {[%clk 0:00:19]}  Kxf7 {[%clk 0:00:10]} 45. Ne5+ {[%clk 0:00:19]}  Kg7 {[%clk 0:00:10]} 46. Nxc6 {[%clk 0:00:20]}  Qd7 {[%clk 0:00:10]} 47. Rxc2 {[%clk 0:00:21]}  a4 {[%clk 0:00:10]} 48. Qxa4 {[%clk 0:00:20]}  Nh5 {[%clk 0:00:10]} 49. Qd4+ {[%clk 0:00:21]}  Kh6 {[%clk 0:00:10]} 50. Ne5 {[%clk 0:00:21]}  Qb7 {[%clk 0:00:09]} 51. Qd2+ {[%clk 0:00:20]}  f4 {[%clk 0:00:09]} 52. d7 {[%clk 0:00:20]}  Qa7+ {[%clk 0:00:07]} 53. Kh2 {[%clk 0:00:20]}  Ng3 {[%clk 0:00:03]} 54. Qxf4+ {[%clk 0:00:20]}  Kh5 {[%clk 0:00:03]} 55. Qxg3 {[%clk 0:00:20]}  Qa5 {[%clk 0:00:02]} 56. Qg4+ {[%clk 0:00:19]}  Kh6 {[%clk 0:00:03]} 57. Qh4+ {[%clk 0:00:20]}  Kg7 {[%clk 0:00:03]} 58. Ng4 {[%clk 0:00:18]}  g5 {[%clk 0:00:03]} 59. Qg3 {[%clk 0:00:19]}  h5 {[%clk 0:00:03]} 60. Qe5+ {[%clk 0:00:19]}  Qxe5+ {[%clk 0:00:03]} 61. Nxe5 {[%clk 0:00:20]}  Kf6 {[%clk 0:00:04]} 62. Nc6 {[%clk 0:00:20]}  g4 {[%clk 0:00:04]} 63. d8=Q+ {[%clk 0:00:20]}  Kf5 {[%clk 0:00:05]} 64. fxg4+ {[%clk 0:00:19]}  hxg4 {[%clk 0:00:05]} 65. Qd5+ {[%clk 0:00:19]}  Kf4 {[%clk 0:00:06]} 66. Rf2+ {[%clk 0:00:19]}  Ke3 {[%clk 0:00:06]} 67. Qd2+ {[%clk 0:00:19]}  Ke4 {[%clk 0:00:07]} 68. Rf4# {[%clk 0:00:19]} 1-0


[Site "https://www.chess.com"]

[Event "Titled Tuesday Blitz June 20 Early 2023"]
[White "Seo, Jung Min"]
[Black "Asavasaetakul, Chawit"]
[WhiteFideId "1734687"]
[BlackFideId "6204856"]
[WhiteElo "2468"]
[BlackElo "1919"]
[Result "1-0"]
[Round "11"]
[TimeControl "180+2"]
[Date "2023.06.20"]
[WhiteClock "0:00:52"]
[BlackClock "0:00:10"]
[Board "24"]

1. d4 {[%clk 0:03:00]}  d5 {[%clk 0:02:58]} 2. c4 {[%clk 0:03:00]}  c6 {[%clk 0:02:58]} 3. Nf3 {[%clk 0:03:00]}  Nf6 {[%clk 0:02:58]} 4. e3 {[%clk 0:03:00]}  Bf5 {[%clk 0:02:57]} 5. Nc3 {[%clk 0:03:00]}  e6 {[%clk 0:02:58]} 6. Nh4 {[%clk 0:03:00]}  Be4 {[%clk 0:02:58]} 7. f3 {[%clk 0:02:59]}  Bg6 {[%clk 0:02:58]} 8. Qb3 {[%clk 0:02:59]}  Qc7 {[%clk 0:02:57]} 9. Bd2 {[%clk 0:02:58]}  Be7 {[%clk 0:02:57]} 10. g3 {[%clk 0:02:55]}  a6 {[%clk 0:02:42]} 11. cxd5 {[%clk 0:02:53]}  cxd5 {[%clk 0:02:38]} 12. Rc1 {[%clk 0:02:44]}  Nc6 {[%clk 0:02:36]} 13. Kf2 {[%clk 0:02:39]}  O-O {[%clk 0:02:32]} 14. Nxg6 {[%clk 0:02:38]}  hxg6 {[%clk 0:02:27]} 15. Bd3 {[%clk 0:02:37]}  Rac8 {[%clk 0:02:01]} 16. Ne2 {[%clk 0:02:36]}  Rfe8 {[%clk 0:01:45]} 17. Kg2 {[%clk 0:02:35]}  e5 {[%clk 0:01:42]} 18. dxe5 {[%clk 0:02:34]}  Qxe5 {[%clk 0:01:42]} 19. Qxb7 {[%clk 0:02:28]}  Rc7 {[%clk 0:01:40]} 20. Qb3 {[%clk 0:02:21]}  Rb8 {[%clk 0:01:39]} 21. Qa4 {[%clk 0:02:11]}  Rxb2 {[%clk 0:00:47]} 22. Bc3 {[%clk 0:02:09]}  Qxe3 {[%clk 0:00:47]} 23. Bxb2 {[%clk 0:02:08]}  Qxd3 {[%clk 0:00:48]} 24. Qc2 {[%clk 0:02:01]}  Qe3 {[%clk 0:00:42]} 25. Qd1 {[%clk 0:01:41]}  Bc5 {[%clk 0:00:33]} 26. Rf1 {[%clk 0:01:37]}  Re7 {[%clk 0:00:25]} 27. Nf4 {[%clk 0:01:31]}  g5 {[%clk 0:00:19]} 28. Nd3 {[%clk 0:01:20]}  Qe2+ {[%clk 0:00:17]} 29. Qxe2 {[%clk 0:01:19]}  Rxe2+ {[%clk 0:00:18]} 30. Kh1 {[%clk 0:01:19]}  Bd4 {[%clk 0:00:16]} 31. Rxc6 {[%clk 0:01:15]}  Bxb2 {[%clk 0:00:16]} 32. Nxb2 {[%clk 0:01:13]}  Rxb2 {[%clk 0:00:16]} 33. Rxa6 {[%clk 0:01:13]}  d4 {[%clk 0:00:16]} 34. Rd1 {[%clk 0:01:13]}  g4 {[%clk 0:00:17]} 35. fxg4 {[%clk 0:00:53]}  Nxg4 {[%clk 0:00:17]} 36. Rxd4 {[%clk 0:00:53]}  Nxh2 {[%clk 0:00:13]} 37. Ra8+ {[%clk 0:00:50]}  Kh7 {[%clk 0:00:12]} 38. Rh4+ {[%clk 0:00:51]}  Kg6 {[%clk 0:00:10]} 39. Rxh2 {[%clk 0:00:52]} 1-0


[Site "https://www.chess.com"]

[Event "Titled Tuesday Blitz June 20 Early 2023"]
[White "Jakubowski, Krzysztof"]
[Black "Howell, David W L"]
[WhiteFideId "1112848"]
[BlackFideId "410608"]
[WhiteElo "2359"]
[BlackElo "2567"]
[Result "0-1"]
[Round "11"]
[TimeControl "180+2"]
[Date "2023.06.20"]
[WhiteClock "0:00:06"]
[BlackClock "0:00:05"]
[Board "25"]

1. e4 {[%clk 0:02:54]}  e6 {[%clk 0:02:59]} 2. d4 {[%clk 0:02:51]}  d5 {[%clk 0:03:00]} 3. Nc3 {[%clk 0:02:51]}  dxe4 {[%clk 0:03:00]} 4. Nxe4 {[%clk 0:02:50]}  Bd7 {[%clk 0:03:00]} 5. Nf3 {[%clk 0:02:50]}  Bc6 {[%clk 0:03:01]} 6. Ned2 {[%clk 0:02:48]}  Nf6 {[%clk 0:02:59]} 7. Bd3 {[%clk 0:02:47]}  Nbd7 {[%clk 0:02:59]} 8. O-O {[%clk 0:02:47]}  Be7 {[%clk 0:02:59]} 9. Re1 {[%clk 0:02:45]}  O-O {[%clk 0:02:59]} 10. c3 {[%clk 0:02:45]}  a5 {[%clk 0:02:59]} 11. Qe2 {[%clk 0:02:43]}  b6 {[%clk 0:02:53]} 12. Nc4 {[%clk 0:02:37]}  Bb7 {[%clk 0:02:53]} 13. Nce5 {[%clk 0:02:35]}  c5 {[%clk 0:02:45]} 14. Ng5 {[%clk 0:02:05]}  Qe8 {[%clk 0:01:06]} 15. Bb5 {[%clk 0:01:50]}  cxd4 {[%clk 0:01:04]} 16. cxd4 {[%clk 0:01:48]}  Rd8 {[%clk 0:00:58]} 17. Qd3 {[%clk 0:01:35]}  Nxe5 {[%clk 0:00:40]} 18. Rxe5 {[%clk 0:01:34]}  Bc6 {[%clk 0:00:40]} 19. Be3 {[%clk 0:01:22]}  h6 {[%clk 0:00:35]} 20. Bxc6 {[%clk 0:01:16]}  Qxc6 {[%clk 0:00:35]} 21. Nf3 {[%clk 0:01:15]}  Rc8 {[%clk 0:00:29]} 22. Rc1 {[%clk 0:01:12]}  Qb7 {[%clk 0:00:28]} 23. Rb5 {[%clk 0:01:09]}  Nd5 {[%clk 0:00:28]} 24. a3 {[%clk 0:01:03]}  Rxc1+ {[%clk 0:00:21]} 25. Bxc1 {[%clk 0:01:02]}  Rc8 {[%clk 0:00:22]} 26. Bd2 {[%clk 0:01:02]}  Qc6 {[%clk 0:00:21]} 27. h3 {[%clk 0:00:59]}  Bf6 {[%clk 0:00:18]} 28. a4 {[%clk 0:00:48]}  Qc2 {[%clk 0:00:04]} 29. Qe2 {[%clk 0:00:43]}  Qxa4 {[%clk 0:00:04]} 30. b3 {[%clk 0:00:39]}  Qa1+ {[%clk 0:00:04]} 31. Kh2 {[%clk 0:00:40]}  Bxd4 {[%clk 0:00:05]} 32. Qe4 {[%clk 0:00:33]}  Bf6 {[%clk 0:00:05]} 33. Qg4 {[%clk 0:00:32]}  Rd8 {[%clk 0:00:05]} 34. Bxh6 {[%clk 0:00:29]}  Qf1 {[%clk 0:00:06]} 35. Rxd5 {[%clk 0:00:20]}  Rxd5 {[%clk 0:00:06]} 36. Be3 {[%clk 0:00:19]}  Qb5 {[%clk 0:00:06]} 37. Nd2 {[%clk 0:00:15]}  Be5+ {[%clk 0:00:04]} 38. g3 {[%clk 0:00:15]}  Qd3 {[%clk 0:00:04]} 39. Ne4 {[%clk 0:00:14]}  Qxb3 {[%clk 0:00:04]} 40. Ng5 {[%clk 0:00:14]}  Qc2 {[%clk 0:00:04]} 41. Qh5 {[%clk 0:00:12]}  Qg6 {[%clk 0:00:04]} 42. Qf3 {[%clk 0:00:12]}  Qf5 {[%clk 0:00:05]} 43. Qe2 {[%clk 0:00:12]}  Bf6 {[%clk 0:00:05]} 44. Nf3 {[%clk 0:00:11]}  Qd3 {[%clk 0:00:05]} 45. Qa2 {[%clk 0:00:11]}  g6 {[%clk 0:00:05]} 46. Qa4 {[%clk 0:00:10]}  Kg7 {[%clk 0:00:05]} 47. Qg4 {[%clk 0:00:09]}  Qf5 {[%clk 0:00:05]} 48. Qc4 {[%clk 0:00:06]}  Qxf3 {[%clk 0:00:05]} 0-1


[Site "https://www.chess.com"]

[Event "Titled Tuesday Blitz June 20 Early 2023"]
[White "Ajay Karthikeyan"]
[Black "Grandelius, Nils"]
[WhiteFideId "35011685"]
[BlackFideId "1710400"]
[WhiteElo "2321"]
[BlackElo "2573"]
[Result "0-1"]
[Round "11"]
[TimeControl "180+2"]
[Date "2023.06.20"]
[WhiteClock "0:00:02"]
[BlackClock "0:00:22"]
[Board "26"]

1. e4 {[%clk 0:02:58]}  e5 {[%clk 0:02:59]} 2. Nf3 {[%clk 0:02:57]}  Nc6 {[%clk 0:03:00]} 3. Bb5 {[%clk 0:02:56]}  Nf6 {[%clk 0:02:57]} 4. O-O {[%clk 0:02:56]}  Bc5 {[%clk 0:02:57]} 5. d3 {[%clk 0:02:50]}  Nd4 {[%clk 0:02:55]} 6. Nxd4 {[%clk 0:02:49]}  Bxd4 {[%clk 0:02:56]} 7. c3 {[%clk 0:02:48]}  Bb6 {[%clk 0:02:57]} 8. a4 {[%clk 0:02:48]}  c6 {[%clk 0:02:57]} 9. Bc4 {[%clk 0:02:48]}  d6 {[%clk 0:02:52]} 10. h3 {[%clk 0:02:38]}  Rg8 {[%clk 0:02:26]} 11. b4 {[%clk 0:02:29]}  a6 {[%clk 0:02:16]} 12. Be3 {[%clk 0:02:24]}  g5 {[%clk 0:02:09]} 13. a5 {[%clk 0:02:18]}  Bc7 {[%clk 0:02:05]} 14. Nd2 {[%clk 0:01:56]}  d5 {[%clk 0:01:59]} 15. exd5 {[%clk 0:01:28]}  cxd5 {[%clk 0:01:59]} 16. Bb3 {[%clk 0:01:26]}  d4 {[%clk 0:01:59]} 17. cxd4 {[%clk 0:01:18]}  exd4 {[%clk 0:02:00]} 18. Qf3 {[%clk 0:00:32]}  Qd6 {[%clk 0:01:32]} 19. Rfe1 {[%clk 0:00:21]}  dxe3 {[%clk 0:01:25]} 20. Qxe3+ {[%clk 0:00:16]}  Kf8 {[%clk 0:01:20]} 21. Nc4 {[%clk 0:00:17]}  Qh2+ {[%clk 0:01:16]} 22. Kf1 {[%clk 0:00:17]}  Be6 {[%clk 0:01:10]} 23. Qc5+ {[%clk 0:00:16]}  Kg7 {[%clk 0:00:59]} 24. Qxg5+ {[%clk 0:00:16]}  Kh8 {[%clk 0:01:00]} 25. Qxf6+ {[%clk 0:00:15]}  Rg7 {[%clk 0:01:01]} 26. Rxe6 {[%clk 0:00:09]}  fxe6 {[%clk 0:00:50]} 27. Re1 {[%clk 0:00:08]}  Qxg2+ {[%clk 0:00:43]} 28. Ke2 {[%clk 0:00:08]}  Qxh3 {[%clk 0:00:39]} 29. Rg1 {[%clk 0:00:06]}  Qh5+ {[%clk 0:00:33]} 30. Kd2 {[%clk 0:00:02]}  Qf7 {[%clk 0:00:31]} 31. Qxg7+ {[%clk 0:00:01]}  Qxg7 {[%clk 0:00:31]} 32. Rxg7 {[%clk 0:00:02]}  Kxg7 {[%clk 0:00:32]} 33. Ne3 {[%clk 0:00:02]}  Kf6 {[%clk 0:00:29]} 34. Ng4+ {[%clk 0:00:02]}  Ke7 {[%clk 0:00:29]} 35. d4 {[%clk 0:00:02]}  h5 {[%clk 0:00:29]} 36. Ne3 {[%clk 0:00:02]}  Bf4 {[%clk 0:00:29]} 37. d5 {[%clk 0:00:02]}  Rd8 {[%clk 0:00:25]} 38. Ke2 {[%clk 0:00:01]}  Bxe3 {[%clk 0:00:25]} 39. Kxe3 {[%clk 0:00:01]}  exd5 {[%clk 0:00:26]} 40. Kd4 {[%clk 0:00:01]}  Ke6 {[%clk 0:00:23]} 41. Bd1 {[%clk 0:00:02]}  h4 {[%clk 0:00:23]} 42. Bg4+ {[%clk 0:00:03]}  Kd6 {[%clk 0:00:23]} 43. f4 {[%clk 0:00:03]}  Rg8 {[%clk 0:00:22]} 44. Bf3 {[%clk 0:00:03]}  Rf8 {[%clk 0:00:21]} 45. Ke3 {[%clk 0:00:02]}  h3 {[%clk 0:00:21]} 46. Bh1 {[%clk 0:00:02]}  d4+ {[%clk 0:00:21]} 47. Kxd4 {[%clk 0:00:02]}  Rxf4+ {[%clk 0:00:21]} 48. Ke3 {[%clk 0:00:03]}  Rxb4 {[%clk 0:00:22]} 49. Bxb7 {[%clk 0:00:02]}  Rxb7 {[%clk 0:00:22]} 0-1


[Site "https://www.chess.com"]